bitfinex/quotes_SOLUSD_20250209
["timestamp","ask_amount","ask_price","bid_price","bid_amount"]
[1739111893123,0.063,199.36,199.29,6.4196]
[1739111893124,0.12549,199.32,199.29,6.4196]
[1739111893717,18.00536088,199.35,199.29,6.4196]
[1739111894019,28.03119941,199.34,199.29,6.4196]
[1739111894913,0.12549,199.29,199.24,6.4196]
[1739111895212,28.03119941,199.29,199.24,6.4196]
[1739111896128,0.12549,199.29,199.24,6.4196]
[1739111896423,14.49386088,199.33,199.26,14.49386088]
[1739111896626,34.49386088,199.35,199.28,14.49386088]
[1739111897300,13.41184853,199.34,199.28,14.49386088]
[1739111897504,13.41184853,199.34,199.27,14.49386088]
[1739111898201,27.90570941,199.34,199.27,14.49386088]
[1739111898508,14.49386088,199.3,199.24,6.4196]
[1739111898715,14.49386088,199.28,199.24,6.4196]
[1739111898901,14.49386088,199.28,199.22,16.05736088]
[1739111898902,0.063,199.36,199.27,14.49386088]
[1739111899101,0.063,199.36,199.32,14.49386088]
[1739111899913,0.063,199.36,199.31,14.49386088]
[1739111902222,0.063,199.36,199.3,20.51366088]
[1739111902527,0.063,199.36,199.3,6.0198]
[1739111903729,0.063,199.36,199.3,20.51366088]
[1739111904228,0.063,199.36,199.32,14.49386088]
[1739111904527,0.063,199.36,199.33,14.49386088]
[1739111905308,0.063,199.36,199.34,14.49386088]
[1739111905525,0.063,199.36,199.35,14.49386088]
[1739111907107,0.063,199.48,199.35,20.51366088]
[1739111907309,0.063,199.48,199.42,14.49386088]
[1739111907713,0.063,199.48,199.42,9.05204735]
[1739111908016,20.0,199.47,199.42,9.05204735]
[1739111908215,0.063,199.48,199.35,6.77191842]
[1739111908216,0.063,199.48,199.43,9.05204735]
[1739111908441,0.063,199.48,199.46,9.05204735]
[1739111908638,0.063,199.48,199.47,9.05204735]
[1739111910238,0.063,199.56,199.55,9.05204735]
[1739111911434,0.063,199.56,199.53,9.05204735]
[1739111911638,0.063,199.56,199.53,14.46725281]
[1739111911844,14.46725281,199.59,199.51,14.46725281]
[1739111912040,17.97445281,199.59,199.51,14.46725281]
[1739111912718,14.46725281,199.57,199.5,14.46725281]
[1739111913942,27.87910134,199.58,199.51,14.46725281]
[1739111914136,3.5064,199.63,199.57,14.46725281]
[1739111914444,1.0,199.68,199.61,14.46725281]
[1739111914445,17.97295281,199.68,199.61,14.46725281]
[1739111914621,0.063,199.62,199.57,14.46725281]
[1739111914816,0.063,199.62,199.56,14.46725281]
[1739111915038,14.53025281,199.62,199.56,14.46725281]
[1739111915214,0.063,199.62,199.57,14.46725281]
[1739111915838,3.5696,199.62,199.57,14.46725281]
[1739111916227,0.063,199.62,199.58,14.46725281]
[1739111916427,0.063,199.62,199.59,14.46725281]
[1739111917025,0.063,199.62,199.51,8.42049247]
[1739111917026,0.063,199.62,199.57,14.46725281]
[1739111917225,0.063,199.62,199.58,14.46725281]
[1739111917430,0.063,199.62,199.6,14.46725281]
[1739111917729,0.063,199.62,199.61,14.46725281]
[1739111919944,3.5037,199.79,199.64,20.0]
[1739111920129,3.5036,199.8,199.74,14.46725281]
[1739111920445,0.063,199.82,199.75,14.46725281]
[1739111920446,14.53025281,199.82,199.75,14.46725281]
[1739111920636,0.063,199.82,199.76,14.46725281]
[1739111920830,20.0,199.81,199.77,14.46725281]
[1739111921038,20.0,199.81,199.76,14.46725281]
[1739111921238,0.063,199.82,199.78,14.46725281]
[1739111921431,0.063,199.82,199.76,14.46725281]
[1739111921639,0.063,199.82,199.73,6.0934]
[1739111921640,14.46725281,199.78,199.73,6.0934]
[1739111921839,14.46725281,199.78,199.7,14.46725281]
[1739111922036,14.46725281,199.75,199.68,20.56065281]
[1739111922228,14.46725281,199.74,199.68,6.0934]
[1739111922924,14.46725281,199.76,199.68,20.56065281]
[1739111923126,14.46725281,199.76,199.69,14.46725281]
[1739111923445,14.46725281,199.74,199.68,6.0934]
[1739111923825,14.46725281,199.73,199.66,14.46725281]
[1739111924025,3.5045,199.74,199.61,1.5755]
[1739111924026,14.46725281,199.7,199.63,14.46725281]
[1739111924246,14.46725281,199.69,199.62,20.56065281]
[1739111924424,14.46725281,199.7,199.62,20.56065281]
[1739111924626,17.04183853,199.74,199.65,14.46725281]
[1739111924627,14.46725281,199.72,199.65,14.46725281]
[1739111924922,17.97175281,199.74,199.67,14.46725281]
[1739111925322,17.97175281,199.74,199.62,6.0934]
[1739111925323,14.46725281,199.73,199.66,14.46725281]
[1739111925647,14.46725281,199.74,199.67,14.46725281]
[1739111925833,14.46725281,199.72,199.65,14.46725281]
[1739111926153,14.46725281,199.71,199.64,14.46725281]
[1739111926453,14.46725281,199.72,199.65,14.46725281]
[1739111926622,14.46725281,199.72,199.64,14.46725281]
[1739111926831,14.46725281,199.72,199.65,14.46725281]
[1739111927364,14.46725281,199.73,199.66,14.46725281]
[1739111927657,0.063,199.76,199.72,14.46725281]
[1739111927837,0.063,199.76,199.75,14.46725281]
[1739111930364,0.063,199.76,199.74,14.46725281]
[1739111930657,0.063,199.76,199.75,14.46725281]
[1739111932844,0.063,199.76,199.7,21.31148554]
[1739111932845,0.063,199.76,199.72,14.46725281]
[1739111933048,0.063,199.76,199.74,14.46725281]
[1739111933561,0.063,199.76,199.75,14.46725281]
[1739111935870,0.063,199.76,199.73,14.46725281]
[1739111936555,0.063,199.76,199.7,20.56065281]
[1739111937349,0.063,199.76,199.7,6.0934]
[1739111938164,0.063,199.76,199.69,14.46725281]
[1739111938847,0.063,199.76,199.7,14.46725281]
[1739111939067,0.063,199.76,199.71,14.46725281]
[1739111939461,0.063,199.76,199.75,14.46725281]
[1739111939946,0.063,199.76,199.73,14.46725281]
[1739111940469,0.063,199.76,199.72,14.46725281]
[1739111940765,0.063,199.76,199.67,16.04275281]
[1739111940766,14.46725281,199.75,199.67,16.04275281]
[1739111940955,14.46725281,199.73,199.66,14.46725281]
[1739111941154,14.46725281,199.71,199.64,14.46725281]
[1739111941363,14.46725281,199.7,199.62,14.46725281]
[1739111941662,14.46725281,199.68,199.61,14.46725281]
[1739111941865,14.46725281,199.67,199.6,20.72455281]
[1739111942073,14.46725281,199.67,199.59,14.46725281]
[1739111942259,14.46725281,199.73,199.66,14.46725281]
[1739111942569,13.53733853,199.73,199.67,14.46725281]
[1739111942744,13.53733853,199.73,199.66,14.46725281]
[1739111942944,28.00459134,199.73,199.65,14.46725281]
[1739111943145,14.46725281,199.68,199.61,14.46725281]
[1739111943369,14.46725281,199.68,199.59,14.46725281]
[1739111943370,14.46725281,199.66,199.59,14.46725281]
[1739111943950,14.46725281,199.66,199.58,14.46725281]
[1739111944274,14.46725281,199.64,199.57,14.46725281]
[1739111944764,14.46725281,199.63,199.56,14.46725281]
[1739111944969,14.46725281,199.63,199.55,14.46725281]
[1739111945167,14.46725281,199.62,199.54,14.46725281]
[1739111945368,14.46725281,199.63,199.56,14.46725281]
[1739111945868,14.46725281,199.63,199.55,14.46725281]
[1739111946072,17.97375281,199.63,199.55,14.46725281]
[1739111946277,14.46725281,199.63,199.55,14.46725281]
[1739111946776,28.00459134,199.65,199.57,14.46725281]
[1739111946943,13.53733853,199.65,199.58,14.46725281]
[1739111947149,14.46725281,199.67,199.59,14.46725281]
[1739111947568,14.46725281,199.65,199.57,14.46725281]
[1739111947751,13.53733853,199.64,199.57,14.46725281]
[1739111949147,14.46725281,199.63,199.57,14.46725281]
[1739111950082,14.46725281,199.63,199.57,14.49725281]
[1739111950457,31.51089134,199.64,199.57,14.49725281]
[1739111950978,31.51089134,199.64,199.57,0.03]
[1739111951286,28.00459134,199.62,199.57,0.03]
[1739111951453,28.00459134,199.6,199.57,0.03]
[1739111951654,14.46725281,199.59,199.57,0.03]
[1739111952357,13.53733853,199.58,199.57,0.03]
[1739111952677,28.00459134,199.58,199.57,0.03]
[1739111953052,3.5071,199.59,199.57,0.03]
[1739111953249,14.46725281,199.66,199.58,14.46725281]
[1739111953662,17.97315281,199.66,199.58,14.46725281]
[1739111954068,13.53733853,199.65,199.58,14.46725281]
[1739111955084,17.97295281,199.68,199.6,14.46725281]
[1739111955392,14.53025281,199.72,199.64,14.46725281]
[1739111955888,13.53733853,199.71,199.64,14.46725281]
[1739111956585,14.46725281,199.68,199.6,14.46725281]
[1739111956785,14.46725281,199.66,199.58,14.46725281]
[1739111958385,17.97325281,199.66,199.58,14.46725281]
[1739111959584,28.00459134,199.65,199.57,20.75455281]
[1739111959889,14.46725281,199.63,199.57,0.03]
[1739111960490,17.97375281,199.63,199.57,0.03]
[1739111963009,14.46725281,199.61,199.57,0.03]
[1739111963461,14.46725281,199.6,199.57,0.03]
[1739111964496,13.53733853,199.59,199.57,0.03]
[1739111965199,28.00459134,199.59,199.57,0.03]
[1739111966177,14.46725281,199.58,199.57,0.03]
[1739111966889,17.97455281,199.58,199.57,0.03]
[1739111967280,3.5073,199.58,199.57,0.03]
[1739111968590,31.51189134,199.58,199.57,0.03]
[1739111969797,3.5066,199.62,199.57,0.03]
[1739111970096,3.5061,199.65,199.59,14.46725281]
[1739111970279,17.97315281,199.66,199.59,14.46725281]
[1739111970478,13.53733853,199.65,199.59,14.46725281]
[1739111970797,13.53733853,199.65,199.58,14.46725281]
[1739111971495,14.59274281,199.65,199.58,14.46725281]
[1739111971698,14.59274281,199.65,199.57,0.03]
[1739111971699,27.87910134,199.64,199.57,14.49725281]
[1739111972400,14.46725281,199.63,199.57,14.49725281]
[1739111972578,14.46725281,199.63,199.57,0.03]
[1739111973302,0.12549,199.63,199.57,14.49725281]
[1739111973674,0.063,199.67,199.58,14.46725281]
[1739111973675,14.46725281,199.65,199.58,14.46725281]
[1739111973874,17.97345281,199.65,199.58,14.46725281]
[1739111974085,13.53733853,199.64,199.59,14.46725281]
[1739111974506,14.46725281,199.62,199.57,0.03]
[1739111974703,14.46725281,199.61,199.57,0.03]
[1739111974898,14.46725281,199.62,199.57,0.03]
[1739111975488,3.5065,199.63,199.57,14.49725281]
[1739111975694,16.91834853,199.63,199.57,14.49725281]
[1739111975900,0.12549,199.64,199.59,14.46725281]
[1739111976297,3.63179,199.64,199.58,14.46725281]
[1739111976790,18.09904281,199.64,199.57,14.49725281]
[1739111977715,14.46725281,199.62,199.57,0.03]
[1739111978095,14.46725281,199.61,199.57,0.03]
[1739111978410,14.46725281,199.62,199.57,0.03]
[1739111978915,27.87910134,199.63,199.57,0.03]
[1739111979611,0.063,199.66,199.61,14.46725281]
[1739111979815,0.063,199.66,199.65,14.46725281]
[1739111980292,0.063,199.66,199.65,20.65175281]
[1739111981889,0.063,199.66,199.65,332.65175281]
[1739111982312,0.063,199.66,199.65,20.65175281]
[1739111983907,0.063,199.67,199.66,1.573]
[1739111984091,0.063,199.67,199.66,16.04025281]
[1739111984292,0.063,199.72,199.66,30.50750562]
[1739111984612,0.063,199.72,199.71,14.46725281]
[1739111987023,0.063,199.72,199.69,14.46725281]
[1739111987505,0.063,199.72,199.7,14.46725281]
[1739111987899,0.063,199.72,199.69,14.46725281]
[1739111988208,0.063,199.72,199.67,14.46725281]
[1739111990715,0.063,199.72,199.66,14.46725281]
[1739111992327,0.063,199.72,199.67,14.46725281]
[1739111993326,0.063,199.72,199.68,14.46725281]
[1739111996227,0.18849,199.72,199.66,14.46725281]
[1739111996806,14.65574281,199.72,199.65,14.46725281]
[1739111997032,14.46725281,199.71,199.64,14.46725281]
[1739111998544,17.97225281,199.71,199.64,14.46725281]
[1739111998831,14.59274281,199.7,199.63,14.46725281]
[1739111999341,14.46725281,199.69,199.62,14.46725281]
[1739111999710,14.46725281,199.69,199.64,0.03]
[1739112000237,14.46725281,199.7,199.64,0.03]
[1739112000423,0.063,199.72,199.65,14.46725281]
[1739112000424,18.03515281,199.72,199.65,14.46725281]
[1739112001342,0.12549,199.71,199.65,14.46725281]
[1739112003614,9.09365648,199.72,199.65,9.03065648]
[1739112003812,0.063,199.72,199.71,9.03065648]
[1739112004643,0.063,199.72,199.7,9.03065648]
[1739112004850,0.063,199.72,199.71,9.03065648]
[1739112005424,0.063,199.72,199.69,9.03065648]
[1739112005624,0.063,199.72,199.69,14.44308252]
[1739112006447,0.063,199.72,199.68,14.44308252]
[1739112007155,0.063,199.72,199.7,14.44308252]
[1739112007742,0.063,199.72,199.69,14.44308252]
[1739112007956,0.063,199.72,199.66,14.44308252]
[1739112008257,14.44308252,199.71,199.64,14.47308252]
[1739112008437,14.44308252,199.71,199.64,0.03]
[1739112009050,14.44308252,199.71,199.64,14.47308252]
[1739112009219,14.63157252,199.72,199.65,14.44308252]
[1739112010347,14.44308252,199.71,199.64,14.47308252]
[1739112011751,14.44308252,199.7,199.64,14.47308252]
[1739112011934,14.44308252,199.69,199.64,0.03]
[1739112012246,14.44308252,199.7,199.65,0.03]
[1739112012452,17.94818252,199.71,199.65,0.03]
[1739112014349,14.44308252,199.7,199.65,0.03]
[1739112015449,14.44308252,199.67,199.65,0.03]
[1739112015748,14.44308252,199.66,199.65,0.03]
[1739112016447,31.48632105,199.66,199.65,0.03]
[1739112017529,31.48632105,199.66,199.57,0.03]
[1739112017530,22.12549,199.62,199.57,0.03]
[1739112017730,27.98042105,199.58,199.57,0.03]
[1739112018456,31.48772105,199.58,199.57,0.03]
[1739112020568,32.48772105,199.58,199.57,0.03]
[1739112021266,33.48772105,199.58,199.57,0.03]
[1739112023749,32.48772105,199.58,199.57,0.03]
[1739112026754,14.44308252,199.49,199.48,0.03]
[1739112027652,9.05196139,199.49,199.48,0.03]
[1739112029926,12.68635139,199.49,199.48,0.03]
[1739112035033,26.09819992,199.49,199.48,0.03]
[1739112041340,13.53733853,199.48,199.45,0.03]
[1739112041539,42.58929992,199.46,199.45,0.03]
[1739112042442,0.12549,199.46,199.45,0.03]
[1739112043241,9.17745139,199.46,199.45,0.03]
[1739112043442,12.68685139,199.46,199.45,0.03]
[1739112044867,3.63489,199.46,199.45,0.03]
[1739112045538,12.68685139,199.46,199.45,0.03]
[1739112050669,26.09869992,199.46,199.45,0.03]
[1739112052874,0.12549,199.38,199.34,6.1644]
[1739112053055,22.58929992,199.38,199.34,6.1644]
[1739112054170,22.58929992,199.38,199.29,6.1644]
[1739112054974,26.10009992,199.38,199.29,6.1644]
[1739112055174,27.10009992,199.38,199.29,6.1644]
[1739112055749,20.12549,199.34,199.28,0.03]
[1739112055956,22.58929992,199.29,199.28,0.03]
[1739112056369,13.53733853,199.29,199.28,0.03]
[1739112056548,9.17745139,199.29,199.28,0.03]
[1739112056966,0.12549,199.29,199.28,0.03]
[1739112058969,9.05196139,199.36,199.28,9.08196139]
[1739112059171,9.05196139,199.41,199.34,9.05196139]
[1739112059368,9.05196139,199.42,199.35,9.05196139]
[1739112059677,9.05196139,199.43,199.36,9.05196139]
[1739112059878,33.53733853,199.39,199.33,9.05196139]
[1739112060089,42.58929992,199.39,199.32,9.05196139]
[1739112060783,22.58929992,199.39,199.32,9.05196139]
[1739112060985,13.53733853,199.37,199.31,9.05196139]
[1739112061457,0.12549,199.38,199.34,9.05196139]
[1739112061660,0.12549,199.38,199.35,9.05196139]
[1739112061863,13.53733853,199.38,199.32,9.05196139]
[1739112062066,13.41184853,199.35,199.29,9.05196139]
[1739112062268,0.12549,199.3,199.28,0.03]
[1739112063486,22.46380992,199.29,199.28,0.03]
[1739112063860,22.58929992,199.29,199.28,0.03]
[1739112069362,26.10169992,199.29,199.28,0.03]
[1739112069872,0.12549,199.25,199.18,6.3588]
[1739112070074,0.12549,199.25,199.17,1.6026]
[1739112070075,9.17745139,199.19,199.17,0.03]
[1739112070300,22.58929992,199.18,199.17,0.03]
[1739112071170,26.10369992,199.18,199.17,0.03]
[1739112072675,7.01589211,199.25,199.17,0.03]
[1739112072676,9.05196139,199.32,199.19,1.5726]
[1739112072877,9.05196139,199.35,199.28,9.05196139]
[1739112073077,9.05196139,199.35,199.31,6.3588]
[1739112073078,7.75280547,199.33,199.31,6.3588]
[1739112074591,7.75280547,199.33,199.31,15.41076139]
[1739112074889,7.75280547,199.33,199.31,6.3588]
[1739112075079,13.41184853,199.35,199.31,6.3588]
[1739112075275,13.41184853,199.34,199.31,6.3588]
[1739112075683,13.41184853,199.35,199.31,6.3588]
[1739112076276,13.41184853,199.36,199.31,6.3588]
[1739112076472,20.0,199.35,199.31,20.86162193]
[1739112076784,20.0,199.35,199.32,14.50282193]
[1739112077181,13.41184853,199.36,199.33,14.50282193]
[1739112077182,20.0,199.36,199.33,14.50282193]
[1739112077380,0.063,199.38,199.35,14.50282193]
[1739112077681,0.063,199.38,199.37,14.50282193]
[1739112081193,0.063,199.38,199.36,14.50282193]
[1739112081379,0.063,199.38,199.34,14.50282193]
[1739112082287,0.063,199.35,199.34,14.50282193]
[1739112082586,0.063,199.35,199.33,14.50282193]
[1739112082795,0.063,199.35,199.34,14.50282193]
[1739112093419,0.063,199.38,199.35,1.0]
[1739112093711,0.063,199.47,199.37,30.00564386]
[1739112094010,0.063,199.47,199.46,14.50282193]
[1739112095601,0.063,199.47,199.43,6.0021]
[1739112096327,0.063,199.47,199.45,14.50282193]
[1739112096510,0.063,199.47,199.46,14.50282193]
[1739112098923,0.063,199.47,199.43,6.0021]
[1739112099309,0.063,199.47,199.44,14.50282193]
[1739112100913,0.063,199.47,199.43,20.50492193]
[1739112101623,0.063,199.47,199.44,14.50282193]
[1739112103635,0.063,199.47,199.44,9.05064588]
[1739112103801,0.063,199.47,199.43,15.05274588]
[1739112103997,0.063,199.47,199.34,1.0]
[1739112103998,22.52549441,199.47,199.4,9.05064588]
[1739112104916,22.46249441,199.43,199.36,9.05064588]
[1739112105096,9.05064588,199.44,199.37,9.05064588]
[1739112105429,13.41184853,199.43,199.38,9.05064588]
[1739112105717,13.41184853,199.43,199.37,9.05064588]
[1739112109330,13.41184853,199.43,199.36,9.05064588]
[1739112109331,22.46249441,199.43,199.36,9.05064588]
[1739112109502,13.41184853,199.41,199.36,9.05064588]
[1739112109908,22.46249441,199.41,199.35,9.05064588]
[1739112110108,9.05064588,199.41,199.35,9.05064588]
[1739112111015,12.56084588,199.42,199.35,9.05064588]
[1739112112421,29.05064588,199.43,199.36,9.05064588]
[1739112112732,13.41184853,199.42,199.36,9.05064588]
[1739112113104,13.41184853,199.41,199.36,9.05064588]
[1739112113616,9.05064588,199.41,199.34,15.09474588]
[1739112113819,13.41184853,199.39,199.34,9.05064588]
[1739112114827,13.41184853,199.4,199.34,9.05064588]
[1739112115026,13.41184853,199.4,199.35,9.05064588]
[1739112115620,0.063,199.47,199.4,1.0]
[1739112115806,0.063,199.47,199.46,9.05064588]
[1739112119718,0.063,199.47,199.44,9.05064588]
[1739112119902,0.063,199.47,199.42,9.05064588]
[1739112120308,0.063,199.47,199.41,9.05064588]
[1739112120739,9.05064588,199.44,199.37,9.05064588]
[1739112120939,13.41184853,199.43,199.37,9.05064588]
[1739112121634,13.41184853,199.43,199.37,14.49039948]
[1739112122021,27.90224801,199.43,199.35,14.49039948]
[1739112122228,13.41184853,199.41,199.35,14.49039948]
[1739112122534,27.90224801,199.41,199.34,14.52039948]
[1739112123740,31.41254801,199.41,199.34,14.52039948]
[1739112124251,14.49039948,199.39,199.34,0.03]
[1739112124428,16.92214853,199.41,199.34,0.03]
[1739112124429,13.41184853,199.37,199.34,0.03]
[1739112124833,14.49039948,199.37,199.34,0.03]
[1739112125138,14.49039948,199.4,199.34,0.03]
[1739112125545,13.41184853,199.39,199.34,0.03]
[1739112125744,0.063,199.47,199.37,14.49039948]
[1739112126044,0.063,199.47,199.46,14.49039948]
[1739112126952,0.063,199.47,199.45,14.49039948]
[1739112127155,0.063,199.47,199.39,6.3771]
[1739112127156,0.063,199.47,199.43,14.49039948]
[1739112127654,0.063,199.47,199.42,14.49039948]
[1739112127859,0.063,199.47,199.41,14.49039948]
[1739112128179,13.41184853,199.46,199.4,14.49039948]
[1739112128660,0.063,199.43,199.39,20.86749948]
[1739112128825,14.55339948,199.43,199.36,14.49039948]
[1739112129032,27.90224801,199.42,199.35,14.49039948]
[1739112129333,13.41184853,199.42,199.38,14.49039948]
[1739112129945,0.063,199.43,199.38,14.49039948]
[1739112130151,0.063,199.43,199.36,14.49039948]
[1739112130430,13.41184853,199.4,199.34,14.52039948]
[1739112130629,13.41184853,199.39,199.34,0.03]
[1739112130834,27.90224801,199.39,199.34,0.03]
[1739112131259,13.41184853,199.39,199.34,0.03]
[1739112132040,13.41184853,199.37,199.34,0.03]
[1739112132969,14.49039948,199.38,199.34,0.03]
[1739112133202,14.49039948,199.39,199.34,0.03]
[1739112133343,14.49039948,199.38,199.34,0.03]
[1739112133743,13.41184853,199.36,199.34,0.03]
[1739112134050,27.90224801,199.36,199.34,0.03]
[1739112134849,13.41184853,199.36,199.34,0.03]
[1739112135577,13.41184853,199.37,199.34,0.03]
[1739112137385,20.0,199.37,199.35,14.49039948]
[1739112139164,20.0,199.37,199.34,14.52039948]
[1739112139366,20.0,199.37,199.34,0.03]
[1739112139577,13.41184853,199.36,199.34,0.03]
[1739112141183,16.92304853,199.36,199.34,0.03]
[1739112141486,31.41344801,199.36,199.34,0.03]
[1739112141864,27.90224801,199.35,199.34,0.03]
[1739112143071,31.41364801,199.35,199.34,0.03]
[1739112144557,13.41184853,199.35,199.34,0.03]
[1739112147382,14.55339948,199.38,199.34,0.03]
[1739112147565,0.063,199.38,199.34,0.03]
[1739112148203,0.063,199.38,199.35,14.49039948]
[1739112149685,0.063,199.38,199.36,14.49039948]
[1739112149985,0.063,199.38,199.37,14.49039948]
[1739112153284,0.063,199.38,199.36,20.97699948]
[1739112154563,0.063,199.38,199.37,14.49039948]
[1739112157688,0.063,199.38,199.34,14.52039948]
[1739112157988,0.063,199.38,199.34,0.03]
[1739112158174,27.90224801,199.37,199.34,0.03]
[1739112158875,13.41184853,199.35,199.34,0.03]
[1739112159072,27.90224801,199.35,199.34,0.03]
[1739112159670,31.41364801,199.35,199.34,0.03]
[1739112161269,27.90224801,199.35,199.34,0.03]
[1739112162394,13.41184853,199.35,199.34,0.03]
[1739112164169,14.49039948,199.37,199.34,0.03]
[1739112164367,0.063,199.38,199.34,0.03]
[1739112164983,20.0,199.37,199.34,14.52039948]
[1739112165187,33.41184853,199.37,199.34,14.52039948]
[1739112165766,33.41184853,199.37,199.34,0.03]
[1739112166091,27.90224801,199.35,199.34,0.03]
[1739112167978,31.41364801,199.35,199.34,0.03]
[1739112169292,32.41364801,199.35,199.34,0.03]
[1739112169595,39.68694801,199.35,199.34,0.03]
[1739112169786,41.26134801,199.35,199.34,0.03]
[1739112170776,40.26134801,199.35,199.34,0.03]
[1739112171400,41.26134801,199.35,199.34,0.03]
[1739112171980,39.26134801,199.35,199.34,0.03]
[1739112172180,31.41364801,199.35,199.34,0.03]
[1739112173277,16.92324853,199.35,199.34,0.03]
[1739112173596,0.063,199.38,199.34,0.03]
[1739112173800,0.063,199.38,199.34,14.52039948]
[1739112173979,0.063,199.38,199.36,14.49039948]
[1739112174174,0.063,199.38,199.34,0.03]
[1739112174375,14.55339948,199.38,199.34,0.03]
[1739112174607,13.41184853,199.37,199.34,0.03]
[1739112175396,16.92294853,199.37,199.34,0.03]
[1739112175689,31.41334801,199.37,199.34,0.03]
[1739112175905,14.49039948,199.36,199.34,0.03]
[1739112176079,13.41184853,199.35,199.34,0.03]
[1739112176499,27.90224801,199.35,199.34,0.03]
[1739112177380,31.41364801,199.35,199.34,0.03]
[1739112178898,32.41364801,199.35,199.34,0.03]
[1739112179706,31.41364801,199.35,199.34,0.03]
[1739112184098,112.11364801,199.35,199.34,0.03]
[1739112186207,112.11364801,199.35,199.25,0.03]
[1739112186208,20.0,199.3,199.25,0.03]
[1739112186406,13.41184853,199.26,199.25,0.03]
[1739112186888,13.41184853,199.27,199.25,0.03]
[1739112187704,14.49039948,199.29,199.25,0.03]
[1739112187904,14.49039948,199.33,199.26,14.49039948]
[1739112188095,33.41184853,199.31,199.26,14.49039948]
[1739112188291,13.41184853,199.28,199.26,14.49039948]
[1739112188608,13.41184853,199.28,199.25,14.52039948]
[1739112188787,13.41184853,199.28,199.25,0.03]
[1739112189813,13.41184853,199.28,199.25,14.52039948]
[1739112190102,13.41184853,199.28,199.25,0.03]
[1739112190703,16.92444853,199.28,199.25,0.03]
[1739112192108,13.41184853,199.28,199.25,0.03]
[1739112194198,52.9121,199.32,199.26,14.49039948]
[1739112194393,13.41184853,199.31,199.26,14.49039948]
[1739112194818,13.41184853,199.31,199.25,14.52039948]
[1739112195810,13.41184853,199.31,199.25,9.09822707]
[1739112196311,16.92404853,199.31,199.25,0.03]
[1739112197897,9.06822707,199.28,199.25,0.03]
[1739112198103,22.4800756,199.26,199.25,0.03]
[1739112199508,26.9929756,199.26,199.25,0.03]
[1739112199694,27.9929756,199.26,199.25,0.03]
[1739112199889,28.22200942,199.26,199.25,0.03]
[1739112200096,25.9929756,199.26,199.25,0.03]
[1739112200910,9.06822707,199.28,199.25,0.03]
[1739112201098,80.7,199.29,199.25,0.03]
[1739112201294,13.41184853,199.28,199.25,0.03]
[1739112202010,25.9926756,199.28,199.25,0.03]
[1739112203228,16.92444853,199.28,199.25,0.03]
[1739112203510,13.41184853,199.28,199.25,0.03]
[1739112203813,63.97467157,199.38,199.27,14.51167157]
[1739112204110,49.463,199.38,199.32,14.51167157]
[1739112204301,13.41184853,199.37,199.32,14.51167157]
[1739112204699,13.41184853,199.37,199.31,14.51167157]
[1739112206501,31.4345201,199.37,199.3,14.51167157]
[1739112207919,80.8345201,199.37,199.3,14.51167157]
[1739112208109,20.0,199.34,199.29,14.51167157]
[1739112208412,14.57467157,199.38,199.31,14.51167157]
[1739112208614,0.063,199.38,199.34,14.51167157]
[1739112208799,0.063,199.38,199.35,14.51167157]
[1739112209118,0.063,199.38,199.34,14.51167157]
[1739112209294,0.063,199.38,199.33,6.5698]
[1739112209498,0.063,199.38,199.37,14.51167157]
[1739112209694,0.063,199.43,199.37,30.02334314]
[1739112209918,0.063,199.43,199.42,21.08147157]
[1739112210107,0.063,199.43,199.42,6.5698]
[1739112210410,0.063,199.43,199.32,6.5698]
[1739112210609,0.063,199.43,199.37,14.51167157]
[1739112211025,0.063,199.43,199.32,6.5698]
[1739112211026,14.51167157,199.39,199.32,6.5698]
[1739112211327,14.51167157,199.37,199.32,6.5698]
[1739112211621,20.0,199.38,199.33,14.51167157]
[1739112211833,13.41184853,199.37,199.33,14.51167157]
[1739112212434,0.063,199.35,199.32,21.08147157]
[1739112213131,0.063,199.35,199.32,6.5698]
[1739112218304,0.063,199.35,199.31,14.51167157]